fUST/lending_fUST_20240622
["ID","MTS","AMOUNT","RATE_DAILY","PERIOD"]
[330116445,1719013839061,-500.0,0.00019178,2]
[330116446,1719013839071,-500.0,0.00019178,2]
[330116447,1719013839080,-500.0,0.00019178,2]
[330116448,1719013839089,-500.0,0.00019178,2]
[330116449,1719013839099,-500.0,0.00019178,2]
[330116450,1719013839108,-375.28897102,0.00019178,2]
[330116451,1719013839118,-500.0,0.00019178,2]
[330116452,1719013839127,-500.0,0.00019178,2]
[330116453,1719013839136,-500.0,0.00019178,2]
[330116454,1719013839146,-500.0,0.00019178,2]
[330116455,1719013839160,-500.0,0.00019178,2]
[330116456,1719013839170,-500.0,0.00019178,2]
[330116457,1719013839179,-500.0,0.00019178,2]
[330116458,1719013839188,-500.0,0.00019178,2]
[330116459,1719013839199,-500.0,0.00019178,2]
[330116460,1719013839209,-500.0,0.00019178,2]
[330116461,1719013839218,-300.0,0.00019178,2]
[330116462,1719013839227,-151.0,0.00019178,2]
[330116463,1719013839238,-151.0,0.00019178,2]
[330116464,1719013839248,-151.0,0.00019178,2]
[330116465,1719013839257,-414.29261931,0.00019178,2]
[330116466,1719013839267,-500.0,0.00019178,2]
[330116467,1719013839277,-197.66979882,0.00019178,2]
[330116468,1719013839286,-500.0,0.00019178,2]
[330116469,1719013839295,-500.0,0.00019178,2]
[330116470,1719013839305,-500.0,0.00019178,2]
[330116471,1719013839314,-500.0,0.00019178,2]
[330116472,1719013839323,-500.0,0.00019178,2]
[330116473,1719013839334,-500.0,0.00019178,2]
[330116474,1719013839343,-500.0,0.00019178,2]
[330116475,1719013839353,-303.04772748,0.00019178,2]
[330116476,1719013839362,-500.0,0.00019178,2]
[330116477,1719013839371,-313.26233288,0.00019178,2]
[330116478,1719013839381,-500.0,0.00019178,2]
[330116479,1719013839390,-500.0,0.00019178,2]
[330116480,1719013839400,-500.0,0.00019178,2]
[330116481,1719013839409,-234.68306065,0.00019178,2]
[330116482,1719013839419,-151.0,0.00019178,2]
[330116483,1719013839428,-151.0,0.00019178,2]
[330116484,1719013839437,-151.0,0.00019178,2]
[330116485,1719013839447,-177.85515,0.00019178,2]
[330116486,1719013839457,-151.0,0.00019178,2]
[330116487,1719013839467,-151.0,0.00019178,2]
[330116488,1719013839477,-151.0,0.00019178,2]
[330116489,1719013839487,-151.0,0.00019178,2]
[330116490,1719013839496,-186.735307,0.00019178,2]
[330116491,1719013839506,-186.735307,0.00019178,2]
[330116492,1719013839515,-186.735307,0.00019178,2]
[330116493,1719013839525,-186.735307,0.00019178,2]
[330116494,1719013839535,-186.735307,0.00019178,2]
[330116495,1719013839545,-186.735307,0.00019178,2]
[330116496,1719013839554,-151.0,0.00019178,2]
[330116497,1719013839564,-151.0,0.00019178,2]
[330116498,1719013839573,-151.0,0.00019178,2]
[330116499,1719013839583,-211.973805,0.00019178,2]
[330116500,1719013839592,-151.0,0.00019178,2]
[330116501,1719013839602,-151.0,0.00019178,2]
[330116502,1719013839612,-151.0,0.00019178,2]
[330116503,1719013839621,-151.0,0.00019178,2]
[330116504,1719013839630,-151.0,0.00019178,2]
[330116505,1719013839640,-151.0,0.00019178,2]
[330116506,1719013839649,-151.0,0.00019178,2]
[330116507,1719013839659,-151.0,0.00019178,2]
[330116508,1719013839669,-151.0,0.00019178,2]
[330116509,1719013839678,-151.0,0.00019178,2]
[330116510,1719013839688,-151.0,0.00019178,2]
[330116511,1719013839698,-151.0,0.00019178,2]
[330116512,1719013839710,-151.0,0.00019178,2]
[330116513,1719013839719,-151.0,0.00019178,2]
[330116514,1719013839729,-151.0,0.00019178,2]
[330116515,1719013839738,-151.0,0.00019178,2]
[330116516,1719013839747,-151.0,0.00019178,2]
[330116517,1719013839761,-151.0,0.00019178,2]
[330116518,1719013839771,-151.0,0.00019178,2]
[330116519,1719013839781,-151.0,0.00019178,2]
[330116520,1719013839791,-151.0,0.00019178,2]
[330116521,1719013839801,-168.660892,0.00019178,2]
[330116522,1719013839810,-151.0,0.00019178,2]
[330116523,1719013839820,-151.0,0.00019178,2]
[330116524,1719013839830,-151.0,0.00019178,2]
[330116525,1719013839840,-151.0,0.00019178,2]
[330116526,1719013839851,-153.0,0.00019178,2]
[330116527,1719013839861,-151.0,0.00019442,2]
[330116528,1719013839870,-163.199768,0.00019442,2]
[330116529,1719013839880,-186.735307,0.00019442,2]
[330116530,1719013839889,-186.735307,0.00019442,2]
[330116531,1719013839899,-151.0,0.00019442,2]
[330116532,1719013839908,-151.0,0.00019999,2]
[330116533,1719013839917,-1583.19802264,0.00019999,2]
[330116534,1719013839927,-4484.34777202,0.0002,2]
[330116535,1719013839937,-167.35523192,0.0002,2]
[330116536,1719013839946,-292.86437788,0.0002,2]
[330116537,1719013839958,-809.37440685,0.0002,2]
[330116538,1719013839967,-45184.93711714,0.0002,2]
[330116539,1719013839977,-151.0,0.0002,2]
[330116540,1719013839986,-151.0,0.0002,2]
[330116541,1719013839995,-151.0,0.0002,2]
[330116542,1719013840004,-151.0,0.0002,2]
[330116543,1719013840014,-186.735307,0.0002,2]
[330116544,1719013840023,-186.735307,0.0002,2]
[330116545,1719013840032,-186.735307,0.0002,2]
[330116546,1719013840041,-186.735307,0.0002,2]
[330116547,1719013840050,-151.0,0.0002,2]
[330116548,1719013840059,-151.0,0.0002,2]
[330116549,1719013840069,-151.0,0.0002,2]
[330116550,1719013840078,-151.0,0.0002,2]
[330116551,1719013840087,-151.0,0.0002,2]
[330116552,1719013840096,-151.0,0.0002,2]
[330116553,1719013840105,-151.0,0.0002,2]
[330116554,1719013840114,-151.0,0.0002,2]
[330116555,1719013840123,-272.125455,0.0002,2]
[330116556,1719013840132,-248.56537575,0.0002017,2]
[330116557,1719013840141,-157.665634,0.00021096,2]
[330116558,1719013840154,-663.283901,0.00021096,2]
[330116559,1719013840164,-193.5,0.0002132,2]
[330116560,1719013840173,-268.555525,0.00021918,2]
[330116561,1719013840182,-151.0,0.00021918,2]
[330116562,1719013840191,-215.147166,0.00021918,2]
[330116563,1719013840200,-166.666666,0.00021918,2]
[330116564,1719013840211,-159.95344407,0.00022,2]
[330116565,1719013840220,-1044.38060941,0.00022,2]
[330116566,1719013840231,-186.735307,0.00022169,7]
[330116567,1719013840240,-186.735307,0.00022169,7]
[330116568,1719013840250,-151.0,0.00022169,7]
[330116569,1719013840259,-524.31235627,0.0002217,2]
[330116570,1719013840269,-248.56537575,0.00022283,2]
[330116571,1719013840278,-151.0,0.00022328,7]
[330116572,1719013840287,-151.0,0.00022328,7]
[330116573,1719013840296,-151.0,0.00022328,7]
[330116574,1719013840305,-166.666666,0.00022431,2]
[330116576,1719013840314,-151.0,0.00022609,7]
[330116578,1719013840323,-166.666666,0.00022944,2]
[330116580,1719013840332,-401.52259031,0.00023455,2]
[330116582,1719013840343,-166.666666,0.00023456,2]
[330116584,1719013840352,-193.5,0.00023688,3]
[330116586,1719013840361,-204.005791,0.00023821,7]
[330116588,1719013840370,-150.0,0.00023821,2]
[330116590,1719013840379,-1752.0,0.00023821,2]
[330116592,1719013840388,-1163.83269717,0.000239,2]
[330116594,1719013840397,-186.735307,0.00023945,7]
[330116596,1719013840407,-186.735307,0.00023945,7]
[330116598,1719013840416,-151.0,0.00023945,7]
[330116600,1719013840426,-153.0,0.00023945,2]
[330116602,1719013840435,-153.0,0.00023945,2]
[330116604,1719013840444,-153.0,0.00023945,2]
[330116606,1719013840453,-819.4,0.00023952,3]
[330116608,1719013840464,-166.666666,0.00023969,2]
[330116609,1719013840476,-151.0,0.00024396,7]
[330116612,1719013840485,-151.0,0.00024396,7]
[330116614,1719013840494,-151.0,0.00024396,7]
[330116620,1719013840621,-248.56537575,0.00024397,2]
[330116622,1719013840631,-166.666666,0.00024482,2]
[330116624,1719013840640,-166.666666,0.00025425,2]
[330116625,1719013840649,-5924.20797331,0.00026,2]
[330116627,1719013840659,-181.53915781,0.00026,2]
[330116628,1719013840668,-4168.00549882,0.00026,2]
[330116629,1719013840678,-457.6583212,0.00026,2]
[330116631,1719013840687,-260.51991624,0.00026,2]
[330116633,1719013840696,-151.0,0.00026,7]
[330116634,1719013840706,-186.735307,0.00026,7]
[330116635,1719013840716,-186.735307,0.00026,7]
[330116636,1719013840725,-151.0,0.00026,7]
[330116637,1719013840737,-151.0,0.00026,7]
[330116638,1719013840746,-192.931241,0.00026,7]
[330116639,1719013840755,-193.5,0.00026056,4]
[330116640,1719013840765,-600.0,0.00026301,2]
[330116641,1719013840774,-819.4,0.0002632,4]
[330116642,1719013840783,-151.0,0.0002634,7]
[330116643,1719013840792,-186.735307,0.0002634,7]
[330116644,1719013840801,-186.735302,0.0002634,7]
[330116645,1719013840810,-151.0,0.0002634,7]
[330116646,1719013840819,-3000.0,0.000265,2]
[330116647,1719013840828,-151.0,0.000265,7]
[330116648,1719013840838,-3000.0,0.0002651,2]
[330116649,1719013840847,-248.56537575,0.0002651,2]
[330116650,1719013840856,-3000.0,0.0002652,2]
[330116651,1719013840866,-151.0,0.0002652,7]
[330116652,1719013840876,-151.0,0.0002653,7]
[330116653,1719013840885,-3000.0,0.0002653,2]
[330116654,1719013840895,-3000.0,0.0002654,2]
[330116655,1719013840904,-3000.0,0.0002655,2]
[330116656,1719013840913,-151.0,0.0002655,7]
[330116657,1719013840922,-151.0,0.0002656,7]
[330116658,1719013840932,-3000.0,0.0002656,2]
[330116659,1719013840941,-3000.0,0.0002657,2]
[330116660,1719013840950,-600.0,0.00026575,2]
[330116661,1719013840960,-151.0,0.0002658,7]
[330116662,1719013840969,-3000.0,0.0002658,2]
[330116663,1719013840978,-3000.0,0.0002659,2]
[330116664,1719013840987,-373.45450727,0.00026599,2]
[330116665,1719013840996,-3000.0,0.000266,2]
[330116666,1719013841006,-3512.845081,0.0002661,2]
[330116667,1719013841015,-2940.47195823,0.00026699,4]
[330116668,1719013841024,-497.0,0.000267,2]
[330116669,1719013841033,-497.0,0.000267,2]
[330116670,1719013841042,-205.6831939,0.0002674,2]
[330116671,1719013841052,-205.6831939,0.0002674,2]
[330116672,1719013841061,-317.94108609,0.00026814,2]
[330116673,1719013841070,-174.91159133,0.00026814,2]
[330116674,1719013841079,-723.48959224,0.00026814,2]
[330116675,1719013841088,-154.83742071,0.00026814,2]
[330116676,1719013841098,-271.17946349,0.00026814,2]
[330116677,1719013841107,-179.48462699,0.00026814,2]
[330116678,1719013841115,-155.14543531,0.00026814,2]
[330116679,1719013841124,-213.20796806,0.00026815,2]
[330116680,1719013841133,-490.07682753,0.00026815,2]
[330116681,1719013841142,-159.29148896,0.00026815,2]
[330116682,1719013841155,-601.87476077,0.00026815,2]
[330116683,1719013841165,-1117.28229995,0.00026815,2]
[330116684,1719013841174,-154.79103211,0.00026815,2]
[330116685,1719013841183,-154.79103211,0.00026815,2]
[330116686,1719013841192,-297.00715838,0.00026815,2]
[330116687,1719013841202,-783.29220222,0.00026816,2]
[330116688,1719013841212,-175.89997227,0.00026817,2]
[330116689,1719013841221,-175.89997227,0.00026817,2]
[330116690,1719013841233,-1750.0,0.00026821,2]
[330116691,1719013841241,-600.0,0.00026849,2]
[330116692,1719013841250,-20000.0,0.00027,3]
[330116693,1719013841259,-600.0,0.00027123,2]
[330116694,1719013841269,-1319.04604407,0.0002718,3]
[330116695,1719013841278,-663.283901,0.00027195,2]
[330116696,1719013841287,-205.6831939,0.00027288,2]
[330116697,1719013841296,-448.7020585,0.00027288,2]
[330116698,1719013841305,-205.6831939,0.00027288,2]
[330116699,1719013841314,-205.6831939,0.00027288,2]
[330116700,1719013841323,-2000.0,0.0002729,2]
[330116701,1719013841332,-88888.0,0.00027297,3]
[330116702,1719013841341,-252.0,0.000273,2]
[330116703,1719013841350,-504.0,0.000273,2]
[330116704,1719013841359,-504.0,0.000273,2]
[330116705,1719013841368,-1295.88278068,0.000273,2]
[330116706,1719013841377,-1295.88278066,0.000273,2]
[330116707,1719013841387,-1295.88278066,0.000273,2]
[330116708,1719013841396,-1295.88278066,0.000273,2]
[330116709,1719013841405,-500.0,0.000273,2]
[330116710,1719013841414,-1001.34954174,0.000273,6]
[330116711,1719013841423,-37887.00024763,0.0002739,2]
[330116727,1719013847074,-386.16501926,0.000165,2]
[330116736,1719014092563,525.17579144,0.00025999,60]
[330116737,1719014122552,525.17579144,0.00025999,60]
[330116740,1719014212532,-1225.54180656,0.00015114,2]
[330116741,1719014212557,-20000.0,0.00018187,2]
[330116742,1719014212577,-717.99266288,0.0001819,2]
[330116743,1719014212596,-286.28890236,0.00018192,2]
[330116744,1719014212615,-1583.19802264,0.00018828,2]
[330116745,1719014212635,-723.48959224,0.0001917,2]
[330116746,1719014212654,-525.21703192,0.00019171,2]
[330116747,1719014212674,-154.79103211,0.00019171,2]
[330116748,1719014212693,-175.89997227,0.00019173,2]
[330116749,1719014212713,-1117.28229995,0.00019177,2]
[330116750,1719014212732,-601.87476077,0.00019177,2]
[330116751,1719014212751,-291.4239163,0.00019177,2]
[330116809,1719015037966,-1583.19802264,0.00015044,2]
[330116810,1719015037976,-154.79103211,0.00015439,2]
[330116811,1719015037986,-155.14543531,0.00017082,2]
[330116812,1719015037995,-159.29148896,0.00018219,2]
[330116813,1719015038004,-279.055179,0.00018571,2]
[330116814,1719015038014,-1213.83269717,0.000189,2]
[330116815,1719015038024,-154.83742071,0.00018903,2]
[330116816,1719015038033,-177.4,0.0001893,2]
[330116817,1719015038044,-525.21703192,0.00019145,2]
[330116818,1719015038054,-297.00715838,0.00019145,2]
[330116819,1719015038064,-601.87476077,0.0001917,2]
[330116820,1719015038074,-179.48462699,0.00019963,2]
[330116821,1719015038084,-271.17946349,0.00019964,2]
[330116822,1719015038094,-1102.45850324,0.00019999,2]
[330116823,1719015038103,-4837.485,0.0002,2]
[330116824,1719015038113,-810.06405385,0.0002,2]
[330116825,1719015038123,-181.53915781,0.0002,2]
[330116827,1719015038133,-167.35523192,0.0002,2]
[330116828,1719015038142,-292.86437788,0.0002,2]
[330116829,1719015038152,-723.48959224,0.00020658,2]
[330116830,1719015038162,-24900.0,0.00020659,2]
[330116831,1719015038172,-500.0,0.00020899,2]
[330116832,1719015038181,-190.99720317,0.00020899,2]
[330116833,1719015038191,-500.0,0.00020899,2]
[330116834,1719015038201,-500.0,0.00020899,2]
[330116835,1719015038211,-500.0,0.00020899,2]
[330116836,1719015038220,-1333.78479273,0.000209,2]
[330116837,1719015038230,-260.51991624,0.00021,2]
[330116838,1719015038239,-750.0,0.00021096,2]
[330116839,1719015038249,-161.244187,0.00021096,2]
[330116840,1719015038258,-2400.0,0.00021121,2]
[330116841,1719015038268,-177.4,0.000213,2]
[330116842,1719015038277,-2400.0,0.00021669,2]
[330116843,1719015038286,-401.52259031,0.00021817,2]
[330116844,1719015038296,-289.35401395,0.00021817,2]
[330116845,1719015038306,-231.46194355,0.00021818,2]
[330116846,1719015038316,-174.91159133,0.00021917,2]
[330116847,1719015038325,-166.666666,0.00021918,2]
[330116848,1719015038335,-159.95344407,0.00022,2]
[330116849,1719015038344,-1044.38060941,0.00022,2]
[330116850,1719015038353,-878.16482601,0.0002217,2]
[330116851,1719015038362,-2400.0,0.00022217,2]
[330116852,1719015038372,-166.666666,0.00022431,2]
[330116853,1719015038381,-2400.0,0.00022765,2]
[330116854,1719015038390,-166.666666,0.00022944,2]
[330116855,1719015038399,-231.46194353,0.00023163,2]
[330116856,1719015038408,-166.666666,0.00023456,2]
[330116857,1719015038418,-177.4,0.0002367,3]
[330116858,1719015038428,-2400.0,0.00023861,2]
[330116859,1719015038438,-1213.83269717,0.000239,2]
[330116860,1719015038447,-819.4,0.0002393,3]
[330116861,1719015038456,-166.666666,0.00023969,2]
[330116862,1719015038465,-166.666666,0.00024482,2]
[330116863,1719015038475,-231.46194353,0.00024508,2]
[330116864,1719015038484,-490.07682753,0.00024629,2]
[330116865,1719015038493,-150.0,0.00024677,2]
[330116866,1719015038503,-1752.0,0.00024677,2]
[330116867,1719015038512,-197.04847737,0.00024825,2]
[330116868,1719015038522,-2400.0,0.00024957,2]
[330116869,1719015038531,-1191.09001838,0.00024999,2]
[330116870,1719015038540,-932.60140374,0.00024999,2]
[330116871,1719015038550,-457.6583212,0.00025,2]
[330116872,1719015038562,-4168.00549882,0.00025,2]
[330116873,1719015038572,-213.20796806,0.00025,2]
[330116874,1719015038581,-1333.78479272,0.00025043,2]
[330116875,1719015038591,-166.666666,0.00025425,2]
[330116876,1719015038600,-852.31521781,0.00025786,2]
[330116877,1719015038610,-231.46194353,0.00025852,2]
[330116878,1719015038619,-1020.64,0.00025989,3]
[330116879,1719015038629,-1763.67,0.0002599,3]
[330116880,1719015038641,-1469.72,0.0002599,3]
[330116881,1719015038650,-1224.77,0.0002599,3]
[330116882,1719015038660,-390.91431824,0.00025998,2]
[330116883,1719015038669,-500.0,0.00025998,2]
[330116884,1719015038678,-493.97869986,0.00025998,2]
[330116885,1719015038687,-19129.76373087,0.00025999,2]
[330116886,1719015038697,-5924.20797331,0.00026,2]
[330116887,1719015038706,-177.4,0.0002604,4]
[330116888,1719015038715,-2400.0,0.00026053,2]
[330116889,1719015038725,-819.4,0.000263,4]
[330116890,1719015038734,-600.0,0.00026301,2]
[330116891,1719015038744,-3000.0,0.000265,2]
[330116892,1719015038753,-3000.0,0.0002651,2]
[330116893,1719015038762,-3000.0,0.0002652,2]
[330116894,1719015038772,-3000.0,0.0002653,2]
[330116895,1719015038782,-3000.0,0.0002654,2]
[330116896,1719015038791,-3000.0,0.0002655,2]
[330116897,1719015038801,-3000.0,0.0002656,2]
[330116898,1719015038811,-3000.0,0.0002657,2]
[330116899,1719015038820,-600.0,0.00026575,2]
[330116900,1719015038830,-2940.47195823,0.00026579,4]
[330116901,1719015038840,-3000.0,0.0002658,2]
[330116902,1719015038851,-3000.0,0.0002659,2]
[330116903,1719015038861,-151.0,0.0002659,7]
[330116904,1719015038872,-151.0,0.0002659,7]
[330116905,1719015038882,-151.0,0.0002659,7]
[330116906,1719015038893,-3000.0,0.000266,2]
[330116907,1719015038903,-20000.0,0.00026608,2]
[330116908,1719015038914,-151.0,0.00026608,7]
[330116909,1719015038924,-272.125455,0.00026608,7]
[330116910,1719015038935,-151.0,0.00026609,7]
[330116911,1719015038945,-3512.845081,0.0002661,2]
[330116912,1719015038954,-151.0,0.0002661,7]
[330116913,1719015038964,-192.931241,0.0002661,7]
[330116914,1719015038973,-151.0,0.00026697,7]
[330116915,1719015038983,-151.0,0.00026698,7]
[330116916,1719015038995,-600.0,0.00026849,2]
[330116917,1719015039004,-151.0,0.00026945,7]
[330116918,1719015039015,-151.0,0.00026945,7]
[330116919,1719015039025,-151.0,0.00026945,7]
[330116920,1719015039035,-151.0,0.00026945,7]
[330116921,1719015039047,-151.0,0.00026983,7]
[330116922,1719015039057,-5274.4118793,0.0002708,2]
[330116923,1719015039068,-155.64548367,0.00027116,4]
[330116924,1719015039079,-600.0,0.00027123,2]
[330116925,1719015039089,-2400.0,0.00027149,2]
[330116926,1719015039099,-750.0,0.00027195,2]
[330116927,1719015039110,-525.17579144,0.00027196,90]
[330116928,1719015039121,-175.89997227,0.00027196,2]
[330116929,1719015039132,-373.45450727,0.00027196,2]
[330116930,1719015039142,-154.79103211,0.00027196,2]
[330116931,1719015039152,-2000.0,0.00027197,2]
[330116932,1719015039162,-231.46194353,0.00027197,2]
[330116933,1719015039172,-53007.78534935,0.00027297,3]
[330116974,1719015041203,-286.28890236,0.00015002,2]
[330116976,1719015041212,-317.94108609,0.00019144,2]
[330116977,1719015041222,-491.86828592,0.00021095,2]
[330116979,1719015041232,-151.0,0.00026608,7]
[330116980,1719015041242,-5.98443612,0.00027297,3]
[330116981,1719015041253,-34925.54703748,0.00027297,3]
[330116996,1719015085086,474.81843262,0.00023244,60]
[330117063,1719016232060,-619.36680956,0.00017082,2]
[330117066,1719016232070,-286.28890236,0.00017084,2]
[330117068,1719016232079,-286.28890236,0.00017084,2]
[330117070,1719016232089,-525.21703192,0.00019171,2]
[330117072,1719016232098,-154.69129295,0.00019999,2]
[330117077,1719016232135,-14124.76116258,0.00019999,2]
[330117079,1719016232144,-4203.92230304,0.0002,2]
[330117081,1719016232156,-633.56269696,0.0002,2]
[330117083,1719016232171,-238.262557,0.00020496,2]
[330117085,1719016232180,-168.660892,0.00020673,2]
[330117087,1719016232189,-1273.1968444,0.00020692,2]
[330117089,1719016232199,-300.0,0.00021095,2]
[330117091,1719016232208,-736.67079,0.00021096,2]
[330117093,1719016232217,-161.244187,0.00021096,2]
[330117095,1719016232226,-900.0,0.00021121,2]
[330117097,1719016232235,-900.0,0.00021669,2]
[330117099,1719016232245,-166.666666,0.00021918,2]
[330117101,1719016232254,-159.95344407,0.00022,2]
[330117103,1719016232263,-900.0,0.00022217,2]
[330117105,1719016232273,-1163.07441982,0.00022331,2]
[330117107,1719016232282,-243.44413369,0.00022393,2]
[330117109,1719016232292,-24900.0,0.00022394,2]
[330117111,1719016232302,-166.666666,0.00022431,2]
[330117113,1719016232311,-166.666666,0.00022944,2]
[330117115,1719016232321,-260.51991624,0.00023244,2]
[330117117,1719016232330,-181.53915781,0.00023244,2]
[330117119,1719016232340,-900.0,0.00023313,2]
[330117121,1719016232350,-166.666666,0.00023456,2]
[330117123,1719016232360,-682.8,0.00023905,3]
[330117125,1719016232369,-15617.33017586,0.0002392,2]
[330117209,1719016237962,-166.666666,0.00023969,2]
[330117211,1719016237973,-140.11043268,0.00024409,2]
[330117214,1719016237992,-759.88956732,0.00024409,2]
[330117216,1719016238001,-166.666666,0.00024482,2]
[330117218,1719016238011,-163.04821467,0.00024724,2]
[330117220,1719016238020,-4168.00549882,0.00025,2]
[330117222,1719016238029,-404.61089906,0.00025197,2]
[330117224,1719016238040,-166.666666,0.00025425,2]
[330117226,1719016238049,-153.0,0.00025479,2]
[330117228,1719016238061,-900.0,0.00025505,2]
[330117230,1719016238070,-1750.0,0.00025747,2]
[330117232,1719016238079,-411.0254934,0.00025863,2]
[330117234,1719016238089,-205.6831939,0.00025918,2]
[330117236,1719016238098,-205.6831939,0.00026078,2]
[330117238,1719016238107,-401.0893318,0.00026268,2]
[330117240,1719016238116,-425.99087137,0.00026268,2]
[330117242,1719016238125,-1163.0744198,0.00026269,2]
[330117244,1719016238135,-682.8,0.00026277,4]
[330117246,1719016238144,-5924.20797331,0.00026291,2]
[330117248,1719016238154,-600.0,0.00026301,2]
[330117250,1719016238164,-490.07682753,0.0002635,2]
[330117252,1719016238177,-150.0,0.00026398,2]
[330117254,1719016238186,-153.0,0.00026438,2]
[330117256,1719016238195,-153.0,0.00026438,2]
[330117258,1719016238204,-150.0,0.000265,2]
[330117260,1719016238213,-999.48917639,0.00026575,2]
[330117262,1719016238224,-1102.45850324,0.000266,2]
[330117264,1719016238233,-900.0,0.00026601,2]
[330117266,1719016238243,-292.86437788,0.00026848,2]
[330117268,1719016238252,-1147.26,0.00026894,3]
[330117270,1719016238261,-956.05,0.00026894,3]
[330117272,1719016238271,-167.35523192,0.00026903,2]
[330117274,1719016238281,-448.7020585,0.00026904,2]
[330117277,1719016238292,-153.0,0.00026904,2]
[330117278,1719016238302,-153.0,0.00026904,2]
[330117280,1719016238311,-153.0,0.00026904,2]
[330117282,1719016238321,-153.0,0.00026904,2]
[330117284,1719016238330,-153.0,0.00026904,2]
[330117286,1719016238340,-153.0,0.00026904,2]
[330117287,1719016238349,-734.8,0.00026918,3]
[330117288,1719016238358,-878.16482601,0.00027057,2]
[330117290,1719016238367,-556.35343601,0.00027057,7]
[330117352,1719016241768,-2221.63928048,0.0002389,2]
[330117354,1719016241780,-4256.57208159,0.0002389,2]
[330117357,1719016241792,-13521.78863793,0.0002389,2]
[330117359,1719016241801,-220.95015376,0.00027057,7]
[330117361,1719016241811,-469.85589483,0.00027058,2]
[330117363,1719016241820,-205.6831939,0.00027068,2]
[330117365,1719016241829,-153.0,0.00027068,2]
[330117367,1719016241838,-153.0,0.00027068,2]
[330117369,1719016241848,-153.0,0.00027068,2]
[330117371,1719016241857,-155.64548367,0.00027116,4]
[330117373,1719016241866,-172.86670069,0.00027179,2]
[330117375,1719016241876,-1319.04604407,0.0002718,3]
[330117377,1719016241885,-175.89997227,0.00027194,2]
[330117379,1719016241895,-663.81195832,0.00027194,2]
[330117381,1719016241905,-736.67079,0.00027195,2]
[330117383,1719016241917,-153.0,0.00027288,2]
[330117385,1719016241926,-153.0,0.00027288,2]
[330117387,1719016241936,-153.0,0.00027288,2]
[330117389,1719016241945,-153.0,0.00027288,2]
[330117391,1719016241954,-307.1121085,0.00027288,2]
[330117393,1719016241963,-948.68317705,0.00027297,3]
[330117395,1719016241972,-2000.0,0.00027297,2]
[330117397,1719016241984,-252.0,0.000273,2]
[330117399,1719016241994,-504.0,0.000273,2]
[330117401,1719016242003,-504.0,0.000273,2]
[330117403,1719016242011,-500.0,0.000273,2]
[330117420,1719016242163,-497.0,0.000273,2]
[330117422,1719016242175,-497.0,0.000273,2]
[330117424,1719016242185,-228.32663126,0.00027389,2]
[330117426,1719016242194,-2599.82218505,0.0002739,2]
[330117509,1719016243265,-254.956768,0.00027115,2]
[330117510,1719016243274,-796.71,0.00027387,3]
[330117511,1719016243283,-1075.47238449,0.0002739,2]
[330117512,1719016243399,-280.67647136,0.0002739,2]
[330117513,1719016243428,-341.4864634,0.0002739,2]
[330117616,1719017432341,-161.493675,0.00021096,2]
[330117617,1719017432350,-663.003711,0.00021096,2]
[330117618,1719017432360,-180.254695,0.00023046,2]
[330117619,1719017432371,-569.0,0.00023815,3]
[330117620,1719017432380,-853.9668904,0.00024067,2]
[330117627,1719017438377,-24046.0331096,0.00024067,2]
[330117628,1719017438387,-238.2625579,0.00024067,2]
[330117630,1719017438397,-180.254695,0.00024093,2]
[330117632,1719017438407,-500.0,0.00024135,2]
[330117633,1719017438419,-20000.0,0.00024825,2]